Cogmind - Beta 9.3 @@@ ROGUE MODE // 2019.12.21 @ 19:37:29 // Winter2019/RPGLIKE Player: Cassie Rose Result: Destroyed by G-34 Mercenary with Small Laser Performance ------------- Evolutions (1) 500 Regions Visited (2) 400 Robots Destroyed (50) 250 Value Destroyed (793) 793 Prototype IDs (3) 60 Alien Tech Used (0) 0 Bonus (16) 16 TOTAL SCORE: 2019 Bonus ------- High Alert Combat Kills 16 Cogmind --------- Core Integrity 0/900 Matter 300/300 Energy 460/460 System Corruption 0% Temperature Cool (6) Movement Flying (29) Location -9/Materials Parts ------- > --- POWER (2) -------- Cooled Ion Engine Cooled Ion Engine > --- PROPULSION (4) --- Improved Flight Unit Improved Flight Unit Improved Flight Unit > --- UTILITY (3) ------ Terrain Scan Processor > --- WEAPON (2) ------- Hammer Hammer > --- INVENTORY (0) ---- (None) Peak State ------------ > --- POWER ------------ Cooled Ion Engine Cooled Ion Engine > --- PROPULSION ------- Improved Flight Unit Improved Flight Unit Improved Flight Unit > --- UTILITY ---------- Cooling System Improved Terrain Scanner Terrain Scan Processor > --- WEAPON ----------- Hammer Hammer > --- INVENTORY -------- (None) [Rating: 23] Favorites ----------- Power Light Ion Engine Engine Light Ion Engine Propulsion Improved Flight Unit Wheel Wheel Flight Unit Improved Flight Unit Utility Seismic Analyzer Device Improved Terrain Scanner Processor Seismic Analyzer Weapon Hammer Energy Gun Medium Laser Ballistic Gun Assault Rifle Impact Weapon Hammer Build | -11 -10 -9 ------- Run | Scr Mat Mat Slots Evolved 7 | 4 . 3 Power 1 | 1 . . Propulsion 3 | 1 . 2 Utility 2 | 1 . 1 Weapon 1 | 1 . . Parts Attached 33 | 8 6 19 Power 12 | 2 1 9 Engine 12 | 2 1 9 Core . | . . . Reactor . | . . . Propulsion 10 | 2 2 6 Treads . | . . . Leg . | . . . Wheel 2 | 2 . . Hover . | . . . Flight 8 | . 2 6 Utility 5 | 2 . 3 Device 3 | 1 . 2 Storage . | . . . Processor 2 | 1 . 1 Hackware . | . . . Protection . | . . . Artifact . | . . . Weapon 6 | 2 3 1 Energy Gun 2 | 1 1 . Energy Cannon . | . . . Ballistic Gun 1 | 1 . . Ballistic Cannon . | . . . Launcher . | . . . Special Weapon . | . . . Impact Weapon 3 | . 2 1 Slashing Weapon . | . . . Piercing Weapon . | . . . Special Melee Weapon . | . . . Unidentified Prototypes 3 | . . 3 Parts Lost 2 | . . 2 Power . | . . . Propulsion . | . . . Utility 2 | . . 2 Weapon . | . . . Highest Loss Streak 1 | . . 1 Average Slot Usage (%) 96 | . 100 92 Engine 22 | . 25 19 Wheel 6 | . 13 . Flight 18 | . 11 25 Device 14 | . 12 17 Processor 10 | . 12 9 Energy Gun 3 | . 7 . Ballistic Gun 3 | . 7 . Impact Weapon 14 | . 9 19 Naked Turns . | . . . Heaviest Build 23 | 11 13 23 Greatest Support 40 | 40 40 38 Greatest Overweight (x) . | . . . Average Overweight (x) . | . . . Largest Inventory Capacity . | . . . Average Capacity . | . . . Most Carried . | . . . Average Carried . | . . . Final Capacity . | . . . Final Carried . | . . . Class Distribution -------------------- 39% | Mutant 26% | Scavenger-Mutant 22% | Scout 8% | Sprinter 3% | Scavenger-Scout Dominant Class ---------------- Mutant | -10/Materials Scout | -9/Materials Resources | -11 -10 -9 ----------- Run | Scr Mat Mat Matter Collected 680 | 326 164 190 Remotely . | . . . Salvage Created 1582 | 207 401 974 Parts 69 | 18 25 26 Haulers Intercepted 8 | . 2 6 Recyclers Shooed . | . . . Parts Field Recycled . | . . . Retrieved Matter . | . . . Parts Self-Destructed . | . . . Prevented . | . . . Kills | -11 -10 -9 ------- Run | Scr Mat Mat Combat Hostiles Destroyed 26 | . 11 15 Melee 11 | . 3 8 Guns 7 | . 7 . Classes Destroyed 11 | 2 4 5 Worker 2 | . . 2 Builder 1 | . . 1 Tunneler 7 | 7 . . Hauler 8 | . 2 6 Recycler 3 | 1 1 1 Operator 1 | . . 1 Watcher 2 | . 2 . Swarmer 12 | . 9 3 Grunt 9 | . 2 7 Brawler 1 | . . 1 Sentry 4 | . . 4 Best Kill Streak 10 | 4 3 10 Combat Bots Only 4 | . 3 4 Max Kills in Single Turn 1 | 1 1 1 Gunslinging . | . . . Exploded . | . . . Melee 1 | . 1 1 Uniques/NPCs Destroyed . | . . . Combat | -11 -10 -9 -------- Run | Scr Mat Mat Damage Taken 2254 | . 743 1511 Core 1850 | . 605 1245 Absorbed by Shields . | . . . Redirected to Core 1279 | . 406 873 Core Remaining (%) 68 | 100 36 . Volleys Fired 50 | 18 32 . Largest 2 | 2 2 . Hottest 70 | 70 70 . Shots Fired 100 | 36 64 . Gun 100 | 36 64 . Cannon . | . . . Launcher . | . . . Special . | . . . Kinetic 50 | 18 32 . Thermal 32 | 18 14 . Explosive . | . . . Electromagnetic 18 | . 18 . Robot Hit Streak 11 | 11 5 . Robot Miss Streak 8 | 1 8 . Penetration Max . | . . . Secondary Targets 2 | . 2 . Max Gunslinging Chain 1 | . 1 . Shots Hit Robots 171 | 23 42 106 Core Hits 44 | 9 16 19 Critical Hits 1 | 1 . . Critical Kills . | . . . Critical Parts Destroyed 1 | 1 . . Melee Attacks 175 | . 39 136 Impact 175 | . 39 136 Slashing . | . . . Piercing . | . . . Sneak Attacks 18 | . 1 17 Combat Hostiles 4 | . . 4 Follow-up Attacks 29 | . 6 23 Damage Inflicted 3349 | 287 647 2415 Guns 558 | 287 271 . Cannons . | . . . Explosions . | . . . Melee 2791 | . 376 2415 Ramming . | . . . Kinetic 223 | 126 97 . Thermal 260 | 161 99 . Explosive . | . . . Electromagnetic 75 | . 75 . Impact 2791 | . 376 2415 Slashing . | . . . Piercing . | . . . Highest Corruption . | . . . Average Corruption . | . . . Corruption Purged . | . . . Overload Shots . | . . . Overflow Damage 390 | . 23 367 Projectiles . | . . . Explosions . | . . . Melee 390 | . 23 367 Knockbacks 13 | . . 13 Impact 13 | . . 13 Kinetic . | . . . Secondary . | . . . Self-Inflicted Damage . | . . . Shots . | . . . Rammed . | . . . Targets Rammed . | . . . Kicked . | . . . Crushed . | . . . Highest Temperature 171 | 120 171 1 Average Temperature 47 | 37 53 1 Received Heat Transfer 684 | . 60 624 Siege Activations . | . . . Robots Corrupted . | . . . Combat Hostiles . | . . . Parts Fried 22 | . 1 21 Impact Corruptions 27 | . 4 23 Robots Melted . | . . . Combat Hostiles . | . . . Parts Melted 1 | 1 . . Heat Transferred 777 | 481 296 . Parts Sabotaged . | . . . Parts Stolen . | . . . Parts Stripped . | . . . Power Chain Reactions . | . . . Missiles Intercepted . | . . . Alert | -11 -10 -9 ------- Run | Scr Mat Mat Peak Influence 445 | 40 237 445 Average Influence 166 | 20 125 274 Maximum Alert Level 2 | . 1 2 Low Security (%) 62 | 100 80 27 Level 1 32 | . 19 60 Level 2 5 | . . 12 Level 3 . | . . . Level 4 . | . . . Level 5 . | . . . High Security . | . . . Max Security . | . . . Squads Dispatched 3 | . 1 2 Investigation 2 | . 1 1 Extermination . | . . . Reinforcement 1 | . . 1 Assault . | . . . Garrison . | . . . Intercept . | . . . Construction Impeded . | . . . Haulers Reinforced . | . . . Stealth | -11 -10 -9 --------- Run | Scr Mat Mat Distress Signals 1 | . . 1 Communications Jammed . | . . . Distress Signals . | . . . Times Spotted 39 | . 15 24 Peak Tracking Total 4 | . 4 4 Tactical Retreats 3 | . 1 2 Traps | -11 -10 -9 ------- Run | Scr Mat Mat Traps Triggered 3 | . 1 2 Indirectly . | . . . Trap Hack Attempts . | . . . Triggered . | . . . Disarmed . | . . . Reprogrammed . | . . . Reused . | . . . Traps Extracted . | . . . Installed . | . . . Triggered . | . . . Machines | -11 -10 -9 ---------- Run | Scr Mat Mat Machines Disabled . | . . . Max in Single Turn . | . . . Machines Sabotaged . | . . . Garrisons Compromised . | . . . Overloaded Fab Kills . | . . . Fab Network Shutdowns . | . . . Hacking | -11 -10 -9 --------- Run | Scr Mat Mat Machines Accessed . | . . . Terminals . | . . . Fabricators . | . . . Repair Stations . | . . . Recycling Units . | . . . Scanalyzers . | . . . Garrison Access . | . . . Total Hacks . | . . . Successful . | . . . Failed . | . . . Catastrophic . | . . . Database Lockouts . | . . . Manual . | . . . Terminals . | . . . Fabricators . | . . . Repair Stations . | . . . Recycling Units . | . . . Scanalyzers . | . . . Garrison Access . | . . . Terminal Hacks . | . . . Fabricator Hacks . | . . . Repair Station Hacks . | . . . Recycling Unit Hacks . | . . . Scanalyzer . | . . . Garrison Access Hacks . | . . . Unauthorized Hacks . | . . . Terminals . | . . . Fabricators . | . . . Repair Stations . | . . . Recycling Units . | . . . Scanalyzers . | . . . Garrison Access . | . . . Data Cores Recovered . | . . . Used . | . . . Hacking Detections . | . . . Full Trace Events . | . . . Feedback Events . | . . . Feedback Blocked . | . . . Robot Schematics Acquired . | . . . Robots Built . | . . . Matter . | . . . Time . | . . . Total Robot Build Rating . | . . . Part Schematics Acquired . | . . . Parts Built . | . . . Matter . | . . . Time . | . . . Total Part Build Rating . | . . . Parts Repaired . | . . . Time . | . . . Parts Recycled . | . . . Recycled Matter . | . . . Retrieved Matter . | . . . Retrieved Components . | . . . Parts Scanalyzed . | . . . Part Schematics Acquired . | . . . Parts Damaged . | . . . Bothacking | -11 -10 -9 ------------ Run | Scr Mat Mat Used RIF Installer . | . . . Robots Hacked . | . . . Non-combat . | . . . Combat . | . . . Robot Hacks Applied . | . . . Relay Couplers Released . | . . . Robots Rewired . | . . . Allies Hacked . | . . . Hacks Repelled . | . . . Allies | -11 -10 -9 -------- Run | Scr Mat Mat Total Allies . | . . . Largest Group . | . . . Highest-Rated Group . | . . . Highest-Rated Ally . | . . . Total Orders . | . . . Ally Attacks . | . . . Total Damage . | . . . Kills . | . . . Allies Corrupted . | . . . Allies Melted . | . . . Intel | -11 -10 -9 ------- Run | Scr Mat Mat Robot Analysis Total . | . . . Derelict Logs Recovered . | . . . Drone Launches . | . . . Drone Recoveries . | . . . Exploration | -11 -10 -9 ------------- Run | Scr Mat Mat Turns Passed 1344 | 253 545 546 Spaces Moved 1280 | 124 609 547 Core 4 | 4 . . Treads . | . . . Legs . | . . . Wheels 360 | 120 240 . Hover . | . . . Flight 916 | . 369 547 Fastest Speed 29 | 50 37 29 Average Speed 46 | 79 53 31 Slowest Speed 80 | 80 80 40 Overloaded Moves . | . . . Propulsion Burnouts . | . . . Robots Hopped . | . . . Cave-ins Triggered . | . . . Exploration Rate (%) 47 | 6 96 41 Regions Visited 2 Branch Regions . Pre-discovered Areas . | . . . Known Exits Taken . | . . . Unknown Exits Taken 2 | 1 1 . Scrap Searched . | . . . Spaces Dug . | . . . Terrain Destroyed . | . . . Melee . | . . . Projectile . | . . . AOE . | . . . Actions | -11 -10 -9 --------- Run | Scr Mat Mat Total 1698 | 238 712 748 Wait 136 | 89 18 29 Move 1278 | 123 608 547 Hop . | . . . Pick Up . | . . . Fast Attach 26 | 8 6 12 Attach . | . . . Detach . | . . . Swap 7 | . . 7 Drop 17 | . 6 11 Fire 50 | 18 32 . Melee 140 | . 31 109 Ram . | . . . Kick . | . . . Crush . | . . . Escape Stasis . | . . . Rewire . | . . . Trap . | . . . Miscellaneous 44 | . 11 33 Route ------- -11/Scrapyard -10/Materials (discovered 5 exits: [*Mat x3] / [*Min x2]) -9/Materials (discovered 3 exits: [*Mat] / [*Min] / [*Sto]) History --------- Turn | Location | Event 1 | -11/Scrapyard | Upgraded with Power slot (x1) 1 | -11/Scrapyard | Upgraded with Propulsion slot (x1) 1 | -11/Scrapyard | Upgraded with Utility slot (x1) 1 | -11/Scrapyard | Upgraded with Weapon slot (x1) 8 | -11/Scrapyard | Discovered new exit (range 16) 254 | -11/Scrapyard | Entered Materials 301 | -10/Materials | Build established: Mutant 343 | -10/Materials | Discovered new exit (range 12) 435 | -10/Materials | Discovered new exit (range 5) 532 | -10/Materials | Discovered new exit (range 16) 664 | -10/Materials | Discovered new exit (range 9) 678 | -10/Materials | Core integrity fell below 50% 728 | -10/Materials | Discovered new exit (range 8) 758 | -10/Materials | Core integrity fell below 20% 799 | -10/Materials | Entered another Materials area 800 | -9/Materials | Core integrity fell below 50% 801 | -9/Materials | Reached level 2 801 | -9/Materials | Discovered new exit (range 14) 805 | -9/Materials | Upgraded with Utility slot (x1) 817 | -9/Materials | Discovered new exit (range 4) 834 | -9/Materials | Reached level 3 846 | -9/Materials | Build established: Scavenger-Mutant 920 | -9/Materials | Upgraded with Propulsion slot (x1) 1144 | -9/Materials | Reached level 4 1148 | -9/Materials | Discovered new exit (range 3) 1156 | -9/Materials | Upgraded with Propulsion slot (x1) 1299 | -9/Materials | Core integrity fell below 20% 1345 | -9/Materials | Destroyed by G-34 Mercenary with Small Laser Last Messages --------------- 01278_ Ion Engine fried. 01278_ Aluminum Leg fried. 01293_ Hammer follow-up attack on G-47 Trooper. 01293_ K-01 Serf collects debris. 01299_ Destroyed Particle Gun. 01299_ G-47 Trooper system corrupted by crushing effect. 01299_ G-47 Trooper knocked back. 01299_ K-01 Serf collects debris. 01300_ G-47 Trooper system terminally corrupted. 01303_ K-01 Serf collects debris. 01306_ Used Protomatter to restore core integrity (+120, depleted) 01308_ Sneak attack on K-01 Serf. 01308_ Destroyed Sml. Matter Pod. 01308_ Destroyed Wheel. 01308_ K-01 Serf system corrupted by crushing effect. 01308_ K-01 Serf knocked back. 01309_ K-01 Serf system terminally corrupted. 01311_ Sneak attack on B-36 Bruiser. 01319_ Cooling System destroyed. 01328_ Hammer follow-up attack on B-36 Bruiser. Map ----- +----------------------------------------------------+ | ## # ?????????????????????????????? | | ####/#### + ????????????????????????????? | | ##?# # ? ?? ????????????????????????????? | | #??# ? ###?###?##???????????????????????????? | | """ ##?# #? ?#? ???????????????????????????? | | """ #### # ""? ?#????????????????????????????? | | """ %######## ?""?? ?????????????????????????????? | | # # ""? ??????????????????????????????? | | % + """ # ? ??????????????????????????????? | | ### # """ #? """ ?? ?? ????#??????????????????? | | #### ## """ # "?"?###?###?###?##????????????????? | | #### ## #? ""? ##?##########?? ??????????????? | | #### ## # ? ?###?#?#?###??? ??????????????? | | #### ## # ? ? ####?##?#######?"""???????????? | | #### ######## "? ###?####???##?# ??????????????? | | #### ######## S"" ?##?###?#??#### ?????????????? | | ## ######## ""? #?##?##?#?#?#?# ? ? ?????????? | | ##+##############?###?##??###?????#??#?????????? | | # T ## ######?###??# ?? ?? ?#???????????? | | # % # ############# ?? ?#?#????????? | | # ######?# ##? ? #??? ???????? | | " # ######## %#? ""? """?#???????????? | | ? # """ """ ####?###"" ##??"" "????#??????????? | | " # """ """ ########"T g ##?"""?""? ??#?????????? | | " # """!""" ########""*g % # ???###?????????? | | " # !%!! ########[%!=b@##? #?#? ???????? | | #####+###############+######+##########????????? | | #### ????????? | | ######=! ?????????? | | = % ? ?????????? | | +####### ##############################??????????? | | ! ### #############?###?#?#?#?##??#???????????? | | % #?# #################?##?####?#?###?????????? | | ###!#=!! ] ##########?#?#######?##??????????? | | ### #=!! ############? ? #???##??????????? | | ### #!!! ###########?? ?? ???? ??????????? | | #?# # ####?###??## ?? ??? ??????????? | | ### # ############ ? ? ??????????????? | | ### + ############ ? ????????????????? | | ##+##### ##+##+#####??#?##??##+??????????????????? | | ## ##### #?####?#### ? ?????#?????????????? | | ## ##### ##########??????"?????????????????? | | ### ##?#?#?##????"????"???????????????? | | ### ##?##?##?????? ???????????????????? | | #??##??#?#??? ???????????????????? | | ######+########?#???????????????????????????? | | # ###?#???#?#???????????????????????? | | ###### """ # ? ?? ? ?? ????????????????????? | | ?##??# "T" ##????????????????????????????????? | | ###### #?#???#?????#?????????????????????? | +----------------------------------------------------+ Best States ------------- Heat Dissipation 47 Energy Generation 23 Energy Capacity 460 Matter Stores 300 Matter Capacity 300 Sight Range 16 Robot Scan Range 14 Terrain Scan Range 16 Terrain Scan Density 285 Evasion (%) 64 Item Schematics ----------------- None Robot Schematics ------------------ None Fabricated ------------ Nothing Alien Tech Used ----------------- None Achievements -------------- None Challenges ------------ None RPGLIKE | -11 -10 -9 --------- Run | Scr Mat Mat Levels Raised 3 | . . 3 XP Earned 8058 | 3000 1440 3618 XP Spent 7495 | 3000 . 4495 Upgrades 28 | 8 . 20 Power Slot 1 | 1 . . Propulsion Slot 3 | 1 . 2 Utility Slot 2 | 1 . 1 Weapon Slot 1 | 1 . . Core Integrity 6 | . . 6 Mass Support 4 | 4 . . Sensor Range 7 | . . 7 Terrain Scan Density 2 | . . 2 Melee Accuracy 2 | . . 2 Protomatter Created 316 | . 75 241 Integrity Restored 948 | . 225 723 Core 948 | . 225 723 Protomatter Decayed . | . . . Game ------ Seed AssemblySigixMagmablaster Manual? 0 Play Time 00:24:30 Cumulative 78.0 hours Start 2019.12.21 @ 19:11:21 End 2019.12.21 @ 19:37:29 Sessions 1 Manual Loads 0 Difficulty Rogue Special Mode Winter2019/RPGLIKE Game No. 130 Rogue 130 Adventurer 0 Explorer 0 Win Type - Total 0 Types 0/0/0/0/0/0/0 Lore% 22 Gallery% 28 Achievement% 27 Wizard Run 0 Options --------- ASCII 0 Keyboard 0 Movement Mouse Keybinds 0 Fullscreen 2 Font 18/SmallcapsGlow Map View 76x50 Tactical HUD 1 Map Filters NONE Filters LOW_CONTRAST(13,24,33)|BRIGHTNESS(120)|SATURATION(80) Steam 1 RUN: b396c4e4-43c6-463b-a580-3ce022476bab